fUSD/lending_fUSD_20250206
["ID","MTS","AMOUNT","RATE_DAILY","PERIOD"]
[351823839,1738803046009,-500.0,0.00020107,4]
[351823841,1738803046019,-421.88,0.00020107,4]
[351823843,1738803046029,-500.0,0.00020107,4]
[351823845,1738803046038,-500.0,0.00020107,4]
[351823847,1738803046049,-500.0,0.00020107,4]
[351823849,1738803046058,-500.0,0.00020107,4]
[351823851,1738803046067,-500.0,0.00020107,4]
[351823853,1738803046077,-500.0,0.00020107,4]
[351823855,1738803046086,-500.0,0.00020107,4]
[351823857,1738803046095,-500.0,0.00020107,4]
[351823859,1738803046104,-500.0,0.00020107,4]
[351823861,1738803046115,-500.0,0.00020107,4]
[351823863,1738803046125,-500.0,0.00020107,4]
[351823865,1738803046137,-500.0,0.00020107,2]
[351823867,1738803046149,-500.0,0.00020107,2]
[351823869,1738803046159,-500.0,0.00020107,2]
[351823871,1738803046169,-500.0,0.00020107,2]
[351823873,1738803046180,-500.0,0.00020107,2]
[351823876,1738803046189,-526.82805022,0.00020107,2]
[351823879,1738803046199,-531.34400073,0.00020107,4]
[351823882,1738803046208,-500.0,0.00020107,4]
[351823883,1738803046217,-500.0,0.00020107,4]
[351823886,1738803046227,-184.86,0.00020107,4]
[351823888,1738803046238,-500.0,0.00020107,4]
[351823890,1738803046247,-500.0,0.00020107,4]
[351823892,1738803046257,-500.0,0.00020107,4]
[351823893,1738803046266,-500.0,0.00020107,4]
[351823895,1738803046276,-500.0,0.00020107,4]
[351823897,1738803046286,-500.0,0.00020107,4]
[351823899,1738803046297,-500.0,0.00020107,4]
[351823902,1738803046308,-500.0,0.00020107,4]
[351823904,1738803046319,-500.0,0.00020107,4]
[351823915,1738803046329,-500.0,0.00020107,4]
[351823918,1738803046445,-500.0,0.00020107,4]
[351823920,1738803046457,-500.0,0.00020107,4]
[351823922,1738803046467,-500.0,0.00020107,4]
[351823924,1738803046477,-500.0,0.00020107,4]
[351823926,1738803046487,-500.0,0.00020107,4]
[351823928,1738803046498,-500.0,0.00020107,4]
[351823930,1738803046507,-500.0,0.00020107,4]
[351823932,1738803046517,-477.89,0.00020107,4]
[351823934,1738803046527,-500.0,0.00020107,4]
[351823936,1738803046536,-500.0,0.00020107,4]
[351823938,1738803046547,-236.73444165,0.00020107,4]
[351823940,1738803046557,-500.0,0.00020107,4]
[351823942,1738803046568,-500.0,0.00020107,4]
[351823944,1738803046580,-500.0,0.00020107,4]
[351823946,1738803046589,-500.0,0.00020107,4]
[351823948,1738803046598,-263.42,0.00020107,4]
[351823950,1738803046608,-500.0,0.00020107,4]
[351823952,1738803046618,-330.51,0.00020107,4]
[351823954,1738803046628,-500.0,0.00020107,4]
[351823956,1738803046638,-500.0,0.00020107,4]
[351823958,1738803046647,-500.0,0.00020107,4]
[351823960,1738803046658,-500.0,0.00020107,4]
[351823962,1738803046667,-500.0,0.00020107,4]
[351823964,1738803046677,-500.0,0.00020107,4]
[351823966,1738803046686,-500.0,0.00020107,4]
[351823968,1738803046696,-500.0,0.00020107,4]
[351823970,1738803046706,-500.0,0.00020107,4]
[351823972,1738803046717,-500.0,0.00020107,4]
[351823974,1738803046726,-500.0,0.00020107,4]
[351823976,1738803046736,-228.52185079,0.00020107,4]
[351823978,1738803046747,-500.0,0.00020107,4]
[351823980,1738803046757,-500.0,0.00020107,4]
[351823982,1738803046767,-500.0,0.00020107,4]
[351823984,1738803046776,-500.0,0.00020107,4]
[351823986,1738803046785,-500.0,0.00020107,4]
[351823988,1738803046795,-500.0,0.00020107,4]
[351823990,1738803046804,-500.0,0.00020107,4]
[351823992,1738803046813,-402.09,0.00020107,4]
[351823994,1738803046823,-500.0,0.00020107,4]
[351823996,1738803046832,-500.0,0.00020107,4]
[351823997,1738803046842,-500.0,0.00020107,4]
[351824000,1738803046852,-500.0,0.00020107,4]
[351824002,1738803046861,-500.0,0.00020107,4]
[351824003,1738803046871,-296.692289,0.00020107,4]
[351824006,1738803046881,-500.0,0.00020107,4]
[351824007,1738803046891,-500.0,0.00020107,4]
[351824009,1738803046901,-500.0,0.00020107,4]
[351824011,1738803046910,-500.0,0.00020107,4]
[351824013,1738803046920,-500.0,0.00020107,4]
[351824015,1738803046930,-500.0,0.00020107,4]
[351824017,1738803046939,-500.0,0.00020107,4]
[351824018,1738803046948,-540.17,0.00020107,4]
[351824019,1738803046958,-500.0,0.00020107,4]
[351824020,1738803046967,-500.0,0.00020107,4]
[351824021,1738803046976,-1000.0,0.00020107,4]
[351824022,1738803046985,-500.0,0.00020107,4]
[351824023,1738803046994,-500.0,0.00020107,4]
[351824024,1738803047003,-614.03,0.00020107,4]
[351824025,1738803047012,-500.0,0.00020107,4]
[351824026,1738803047021,-500.0,0.00020107,4]
[351824027,1738803047029,-500.0,0.00020107,4]
[351824028,1738803047039,-500.0,0.00020107,4]
[351824029,1738803047048,-173.78,0.00020107,4]
[351824030,1738803047057,-500.0,0.00020107,4]
[351824031,1738803047066,-500.0,0.00020107,4]
[351824032,1738803047075,-500.0,0.00020107,4]
[351824033,1738803047085,-248.2,0.00020107,4]
[351824034,1738803047093,-500.0,0.00020107,4]
[351824036,1738803047103,-500.0,0.00020107,4]
[351824038,1738803047112,-500.0,0.00020107,4]
[351824040,1738803047121,-500.0,0.00020107,4]
[351824042,1738803047130,-500.0,0.00020107,4]
[351824044,1738803047140,-500.0,0.00020107,4]
[351824046,1738803047150,-500.0,0.00020107,4]
[351824048,1738803047159,-500.0,0.00020107,4]
[351824050,1738803047169,-500.0,0.00020107,4]
[351824052,1738803047179,-500.0,0.00020107,4]
[351824054,1738803047189,-365.53,0.00020107,4]
[351824056,1738803047199,-500.0,0.00020107,4]
[351824058,1738803047209,-387.915805,0.00020107,4]
[351824060,1738803047219,-500.0,0.00020107,4]
[351824062,1738803047229,-500.0,0.00020107,4]
[351824064,1738803047239,-500.0,0.00020107,4]
[351824066,1738803047250,-610.76,0.00020107,4]
[351824068,1738803047260,-202.10469691,0.00020107,4]
[351824070,1738803047269,-500.0,0.00020107,4]
[351824072,1738803047279,-500.0,0.00020107,4]
[351824074,1738803047289,-500.0,0.00020107,4]
[351824076,1738803047299,-500.0,0.00020107,4]
[351824078,1738803047309,-500.0,0.00020107,4]
[351824080,1738803047326,-588.14,0.00020107,4]
[351824082,1738803047336,-500.0,0.00020107,4]
[351824084,1738803047346,-274.95,0.00020107,4]
[351824086,1738803047356,-537.57,0.00020107,4]
[351824088,1738803047366,-500.0,0.00020107,4]
[351824089,1738803047376,-500.0,0.00020107,4]
[351824091,1738803047389,-500.0,0.00020107,4]
[351824093,1738803047399,-500.0,0.00020107,4]
[351824095,1738803047410,-323.44,0.00020107,4]
[351824097,1738803047420,-500.0,0.00020107,4]
[351824099,1738803047429,-500.0,0.00020107,4]
[351824101,1738803047438,-500.0,0.00020107,4]
[351824103,1738803047447,-500.0,0.00020107,4]
[351824105,1738803047458,-500.0,0.00020107,4]
[351824107,1738803047468,-554.184782,0.00020107,4]
[351824109,1738803047478,-565.63,0.00020107,4]
[351824111,1738803047489,-500.0,0.00020107,4]
[351824113,1738803047499,-500.0,0.00020107,4]
[351824115,1738803047510,-500.0,0.00020107,4]
[351824117,1738803047521,-500.0,0.00020107,4]
[351824119,1738803047532,-2500.0,0.00020107,4]
[351824121,1738803047542,-2500.0,0.00020107,4]
[351824123,1738803047552,-2500.0,0.00020107,4]
[351824125,1738803047562,-2500.0,0.00020107,4]
[351824127,1738803047572,-2500.0,0.00020107,4]
[351824130,1738803047587,-2500.0,0.00020107,4]
[351824131,1738803047597,-2500.0,0.00020107,4]
[351824134,1738803047608,-2500.0,0.00020107,4]
[351824135,1738803047619,-2500.0,0.00020107,4]
[351824138,1738803047629,-2500.0,0.00020107,4]
[351824139,1738803047645,-2500.0,0.00020107,4]
[351824142,1738803047659,-2500.0,0.00020107,4]
[351824144,1738803047669,-2500.0,0.00020107,4]
[351824146,1738803047679,-2500.0,0.00020107,4]
[351824147,1738803047689,-2500.0,0.00020107,4]
[351824149,1738803047698,-2500.0,0.00020107,4]
[351824151,1738803047709,-2500.0,0.00020107,4]
[351824154,1738803047720,-2500.0,0.00020107,4]
[351824156,1738803047731,-2500.0,0.00020107,4]
[351824158,1738803047741,-2500.0,0.00020107,4]
[351824159,1738803047752,-2500.0,0.00020107,4]
[351824161,1738803047763,-500.0,0.00020107,4]
[351824163,1738803047774,-2500.0,0.00020107,4]
[351824165,1738803047784,-165.38487611,0.00020107,4]
[351824167,1738803047794,-2500.0,0.00020107,4]
[351824169,1738803047804,-500.0,0.00020107,4]
[351824172,1738803047815,-548.28,0.00020107,4]
[351824174,1738803047825,-621.88,0.00020107,4]
[351824175,1738803047836,-1511.91,0.00020107,2]
[351824177,1738803047845,-500.0,0.00020107,4]
[351824179,1738803047855,-500.0,0.00020107,4]
[351824181,1738803047865,-500.0,0.00020107,4]
[351824183,1738803047875,-500.0,0.00020107,4]
[351824185,1738803047886,-500.0,0.00020107,4]
[351824187,1738803047896,-553.42,0.00020107,4]
[351824190,1738803047907,-500.0,0.00020107,4]
[351824192,1738803047916,-294.00951908,0.00020107,4]
[351824193,1738803047926,-500.0,0.00020107,4]
[351824195,1738803047936,-500.0,0.00020107,4]
[351824198,1738803047946,-500.0,0.00020107,4]
[351824199,1738803047955,-500.0,0.00020107,4]
[351824201,1738803047965,-500.0,0.00020107,4]
[351824203,1738803047974,-500.0,0.00020107,4]
[351824205,1738803047984,-500.0,0.00020107,4]
[351824207,1738803047994,-598.61115145,0.00020107,4]
[351824209,1738803048003,-821.0,0.00020107,2]
[351824211,1738803048012,-151.0,0.00020108,2]
[351824213,1738803048022,-170.851552,0.00020108,2]
[351824215,1738803048032,-151.0,0.00020108,2]
[351824217,1738803048041,-151.0,0.00020108,2]
[351824219,1738803048050,-151.0,0.00020108,7]
[351824221,1738803048061,-151.0,0.00020108,7]
[351824223,1738803048070,-151.0,0.00020108,7]
[351824225,1738803048079,-151.0,0.00020108,7]
[351824227,1738803048089,-151.0,0.00020108,7]
[351824229,1738803048099,-151.0,0.00020108,7]
[351824231,1738803048109,-151.0,0.00020108,7]
[351824233,1738803048117,-151.0,0.00020108,7]
[351824235,1738803048126,-151.0,0.00020108,7]
[351824237,1738803048137,-151.0,0.00020108,7]
[351824239,1738803048147,-151.0,0.00020108,7]
[351824241,1738803048156,-151.0,0.00020108,7]
[351824243,1738803048166,-151.0,0.00020108,7]
[351824245,1738803048175,-151.0,0.00020108,7]
[351824247,1738803048185,-151.0,0.00020108,7]
[351824249,1738803048195,-151.0,0.00020108,7]
[351824251,1738803048205,-151.0,0.00020108,7]
[351824253,1738803048214,-151.0,0.00020108,7]
[351824255,1738803048223,-151.0,0.00020108,7]
[351824257,1738803048232,-151.0,0.00020108,7]
[351824258,1738803048241,-151.0,0.00020108,7]
[351824260,1738803048250,-151.0,0.00020108,7]
[351824262,1738803048260,-151.0,0.00020108,7]
[351824264,1738803048269,-151.0,0.00020108,7]
[351824266,1738803048279,-151.0,0.00020108,7]
[351824268,1738803048289,-151.0,0.00020108,7]
[351824270,1738803048298,-151.0,0.00020108,7]
[351824272,1738803048308,-151.0,0.00020108,7]
[351824274,1738803048320,-151.0,0.00020108,7]
[351824277,1738803048331,-151.0,0.00020108,7]
[351824279,1738803048346,-151.0,0.00020108,7]
[351824281,1738803048358,-151.0,0.00020108,7]
[351824283,1738803048368,-151.0,0.00020108,7]
[351824285,1738803048378,-151.0,0.00020108,7]
[351824287,1738803048391,-151.0,0.00020108,7]
[351824289,1738803048401,-151.0,0.00020108,7]
[351824291,1738803048411,-151.0,0.00020108,7]
[351824293,1738803048422,-151.0,0.00020108,7]
[351824295,1738803048431,-151.0,0.00020108,7]
[351824297,1738803048440,-151.0,0.00020108,7]
[351824299,1738803048450,-151.0,0.00020108,7]
[351824301,1738803048460,-151.0,0.00020108,7]
[351824303,1738803048473,-151.0,0.00020108,7]
[351824305,1738803048485,-151.0,0.00020108,7]
[351824307,1738803048498,-151.0,0.00020108,7]
[351824309,1738803048508,-151.0,0.00020108,7]
[351824310,1738803048517,-151.0,0.00020108,7]
[351824312,1738803048527,-151.0,0.00020108,7]
[351824314,1738803048537,-151.0,0.00020108,7]
[351824316,1738803048546,-151.0,0.00020108,7]
[351824318,1738803048557,-151.0,0.00020108,7]
[351824320,1738803048567,-151.0,0.00020108,7]
[351824322,1738803048579,-151.0,0.00020108,7]
[351824324,1738803048589,-151.0,0.00020108,7]
[351824326,1738803048598,-151.0,0.00020108,7]
[351824328,1738803048609,-151.0,0.00020108,7]
[351824340,1738803048716,-151.0,0.00020108,7]
[351824342,1738803048727,-151.0,0.00020108,7]
[351824344,1738803048737,-151.0,0.00020108,7]
[351824346,1738803048748,-151.0,0.00020108,7]
[351824348,1738803048758,-151.0,0.00020108,7]
[351824350,1738803048768,-151.0,0.00020108,7]
[351824352,1738803048779,-151.0,0.00020108,7]
[351824354,1738803048790,-151.0,0.00020108,7]
[351824356,1738803048800,-151.0,0.00020108,7]
[351824358,1738803048811,-151.0,0.00020108,7]
[351824360,1738803048820,-151.0,0.00020108,7]
[351824362,1738803048831,-151.0,0.00020108,7]
[351824364,1738803048841,-151.0,0.00020108,7]
[351824366,1738803048850,-151.0,0.00020108,7]
[351824368,1738803048861,-151.0,0.00020108,7]
[351824370,1738803048871,-151.0,0.00020108,7]
[351824372,1738803048881,-151.0,0.00020108,7]
[351824374,1738803048892,-151.0,0.00020108,7]
[351824376,1738803048902,-151.0,0.00020108,7]
[351824378,1738803048911,-151.0,0.00020108,7]
[351824380,1738803048921,-151.0,0.00020108,7]
[351824382,1738803048930,-151.0,0.00020108,7]
[351824384,1738803048940,-151.0,0.00020108,7]
[351824386,1738803048950,-151.0,0.00020108,7]
[351824388,1738803048960,-151.0,0.00020108,7]
[351824390,1738803048970,-151.0,0.00020108,7]
[351824392,1738803048979,-151.0,0.00020108,7]
[351824394,1738803048989,-151.0,0.00020108,7]
[351824396,1738803048998,-151.0,0.00020108,7]
[351824398,1738803049008,-151.0,0.00020108,7]
[351824400,1738803049018,-151.0,0.00020108,7]
[351824402,1738803049027,-151.0,0.00020108,7]
[351824404,1738803049037,-151.0,0.00020108,7]
[351824406,1738803049047,-151.0,0.00020108,7]
[351824408,1738803049057,-151.0,0.00020108,7]
[351824410,1738803049066,-151.0,0.00020108,7]
[351824412,1738803049075,-151.0,0.00020108,7]
[351824414,1738803049085,-151.0,0.00020108,7]
[351824416,1738803049095,-151.0,0.00020108,7]
[351824418,1738803049105,-151.0,0.00020108,7]
[351824420,1738803049115,-151.0,0.00020108,7]
[351824422,1738803049125,-151.0,0.00020108,7]
[351824423,1738803049134,-151.0,0.00020108,7]
[351824425,1738803049146,-151.0,0.00020108,7]
[351824428,1738803049156,-151.0,0.00020108,2]
[351824429,1738803049166,-151.0,0.00020108,2]
[351824431,1738803049177,-151.0,0.00020109,2]
[351824433,1738803049186,-239.015196,0.00020109,2]
[351824435,1738803049196,-150.0,0.00020109,2]
[351824437,1738803049205,-7500.0,0.00020109,2]
[351824439,1738803049215,-7500.0,0.00020109,2]
[351824441,1738803049225,-7500.0,0.00020109,2]
[351824443,1738803049234,-7500.0,0.00020109,2]
[351824445,1738803049244,-600.465488,0.00020109,2]
[351824447,1738803049255,-600.465488,0.00020109,2]
[351824449,1738803049265,-600.465488,0.00020109,2]
[351824451,1738803049276,-600.465488,0.00020109,2]
[351824453,1738803049286,-500.0,0.00020109,4]
[351824455,1738803049295,-500.0,0.00020109,4]
[351824457,1738803049304,-500.0,0.00020109,4]
[351824459,1738803049314,-500.0,0.00020109,4]
[351824461,1738803049323,-500.0,0.00020109,4]
[351824462,1738803049332,-500.0,0.00020109,4]
[351824464,1738803049342,-320.5,0.00020109,4]
[351824466,1738803049352,-500.0,0.00020109,2]
[351824468,1738803049361,-500.0,0.00020109,2]
[351824470,1738803049371,-500.0,0.00020109,2]
[351824472,1738803049381,-500.0,0.00020109,2]
[351824474,1738803049393,-547.35506898,0.00020109,2]
[351824476,1738803049402,-484.33372786,0.00020109,2]
[351824479,1738803049412,-153370.63265818,0.00020109,2]
[351824481,1738803049422,-2675673.61752323,0.00020109,30]
[351824482,1738803049431,-315.03843495,0.00020109,120]
[351824484,1738803049441,-1961.18912176,0.00020109,5]
[351824486,1738803049450,-695.64399587,0.00020109,10]
[351824488,1738803049459,-403.15093836,0.00020109,30]
[351824490,1738803049469,-3591897.54593905,0.00020109,30]
[351824505,1738803049599,-2080.56048412,0.00020109,30]
[351824506,1738803049611,-1235.0,0.00020109,30]
[351824507,1738803049623,-794.17380999,0.00020109,30]
[351824508,1738803049635,-10384.0,0.00020109,30]
[351824509,1738803049646,-651.08097995,0.00020109,30]
[351824514,1738803049686,-500.0,0.00020098,4]
[351824516,1738803049696,-500.0,0.00020099,4]
[351824518,1738803049706,-26252.81659571,0.00020109,30]
[351824520,1738803049717,-27426.73516892,0.00020109,30]
[351824523,1738803049734,-806.0598281,0.00020109,30]
[351824525,1738803049745,-573206.63039867,0.00020109,30]
[351824542,1738803049896,-5000.0,8.973e-05,2]
[351824544,1738803049905,-500.0,0.00020099,4]
[351824546,1738803049914,-500.0,0.00020107,4]
[351824548,1738803049924,-228.56342616,0.00020107,4]
[351824550,1738803049933,-31222.81431666,0.00020109,30]
[351824552,1738803049944,-575.84999999,0.00020109,30]
[351824554,1738803049955,-314.9424715,0.00020109,30]
[351824556,1738803049967,-256.999961,0.00020109,30]
[351824560,1738803049998,-252.71462698,0.00020109,30]
[351824563,1738803050010,-10133.0,0.00020109,30]
[351824565,1738803050021,-1237.2,0.00020109,30]
[351825274,1738803083001,1892.5,8.836e-05,2]
[351825291,1738804232563,-150.0,8.972e-05,2]
[351825292,1738804232573,-300.0,8.972e-05,2]
[351825293,1738804232583,-23754.7144,8.973e-05,2]
[351825294,1738804232593,-5000.0,8.973e-05,2]
[351825295,1738804232603,-844.0703863,9.95e-05,2]
[351825296,1738804232612,-844.0703863,9.97e-05,2]
[351825297,1738804232624,-844.0703863,9.996e-05,2]
[351825298,1738804232635,-844.0703863,9.999e-05,2]
[351825299,1738804232645,-172.89,0.00010137,2]
[351825300,1738804232655,-735.96878087,0.00010137,2]
[351825301,1738804232665,-250.0,0.00011855,2]
[351825302,1738804232675,-165.36,0.0001499,2]
[351825303,1738804232685,-155.762,0.00016224,2]
[351825304,1738804232694,-1302.544,0.00016224,2]
[351825305,1738804232704,-547.57,0.00016913,2]
[351825306,1738804232714,-4023.0,0.00017668,2]
[351825307,1738804232724,-299.99,0.00017668,4]
[351825308,1738804232733,-150.0,0.00018123,2]
[351825309,1738804232742,-150.0,0.00018123,2]
[351825310,1738804232751,-153.01,0.000186,2]
[351825311,1738804232761,-2000.0,0.00018714,2]
[351825312,1738804232770,-23900.0,0.00018819,2]
[351825313,1738804232779,-236.4142019,0.00018858,2]
[351825314,1738804232789,-200.0,0.00018859,2]
[351825315,1738804232798,-166.42,0.00018876,2]
[351825316,1738804232807,-200.0,0.00018919,2]
[351825317,1738804232816,-265.65,0.00018948,2]
[351825318,1738804232826,-1000.0,0.00018961,2]
[351825319,1738804232835,-1281.44,0.00019026,30]
[351825320,1738804232844,-150.0,0.0001913,2]
[351825321,1738804232853,-547.57,0.00019177,2]
[351825322,1738804232863,-150.0,0.00019178,2]
[351825323,1738804232873,-1541.0,0.00019226,2]
[351825324,1738804232883,-300.0,0.000194,7]
[351825325,1738804232893,-2000.0,0.00019406,2]
[351825326,1738804232903,-377.25,0.00019413,2]
[351825327,1738804232913,-372.93,0.00019419,2]
[351825328,1738804232923,-1541.0,0.00019424,2]
[351825329,1738804232933,-370.95,0.00019431,2]
[351825330,1738804232943,-376.82,0.00019447,2]
[351825331,1738804232952,-380.05,0.00019471,2]
[351825332,1738804232964,-600.0,0.000195,7]
[351825333,1738804232975,-1000.0,0.000196,7]
[351825334,1738804232985,-1541.0,0.00019622,2]
[351825335,1738804232994,-150.0,0.00019683,2]
[351825336,1738804233004,-1300.0,0.000197,7]
[351825337,1738804233015,-1700.0,0.000198,7]
[351825338,1738804233024,-1541.0,0.0001982,2]
[351825339,1738804233035,-404.50375742,0.0001982,2]
[351825340,1738804233048,-201.56717717,0.00019831,2]
[351825341,1738804233060,-11477.44576116,0.00019875,15]
[351825342,1738804233075,-150.0,0.00019886,2]
[351825343,1738804233086,-150.0,0.00019891,2]
[351825344,1738804233097,-150.0,0.00019892,2]
[351825345,1738804233109,-232.65332889,0.00019896,2]
[351825346,1738804233120,-300.0,0.000199,7]
[351825347,1738804233131,-370.14,0.00019908,2]
[351825348,1738804233144,-150.0,0.00019916,2]
[351825349,1738804233155,-150.0,0.00019921,2]
[351825350,1738804233166,-150.0,0.00019926,2]
[351825351,1738804233176,-150.0,0.00019928,2]
[351825352,1738804233187,-500.0,0.00019946,2]
[351825353,1738804233199,-150.0,0.0001996,2]
[351825354,1738804233211,-150.0,0.00019969,2]
[351825355,1738804233222,-150.0,0.00019977,2]
[351825356,1738804233234,-150.0,0.0001998,2]
[351825357,1738804233245,-150.0,0.00019988,2]
[351825358,1738804233255,-150.0,0.00019991,2]
[351825359,1738804233267,-3000.0,0.0002,2]
[351825360,1738804233278,-190.0,0.0002,30]
[351825361,1738804233288,-190.0,0.0002,30]
[351825362,1738804233298,-192.72,0.0002,4]
[351825363,1738804233309,-150.0,0.0002,2]
[351825364,1738804233319,-155.26,0.0002,31]
[351825365,1738804233330,-155.26,0.0002,31]
[351825366,1738804233341,-155.26,0.0002,31]
[351825367,1738804233351,-155.26,0.0002,31]
[351825368,1738804233360,-155.26,0.0002,31]
[351825369,1738804233370,-155.26,0.0002,31]
[351825370,1738804233380,-155.26,0.0002,31]
[351825371,1738804233391,-155.26,0.0002,31]
[351825372,1738804233404,-155.26,0.0002,31]
[351825373,1738804233413,-155.26,0.0002,31]
[351825374,1738804233423,-155.26,0.0002,31]
[351825375,1738804233433,-155.26,0.0002,31]
[351825376,1738804233442,-155.26,0.0002,31]
[351825377,1738804233452,-155.26,0.0002,31]
[351825378,1738804233462,-155.26,0.0002,31]
[351825379,1738804233472,-155.26,0.0002,31]
[351825380,1738804233482,-1000.0,0.00020003,2]
[351825381,1738804233492,-2642.90317452,0.00020006,2]
[351825382,1738804233501,-150.0,0.00020009,2]
[351825383,1738804233511,-150.0,0.00020015,2]
[351825384,1738804233521,-1541.0,0.00020019,2]
[351825385,1738804233530,-150.0,0.00020022,2]
[351825386,1738804233541,-150.0,0.00020023,2]
[351825387,1738804233551,-150.0,0.00020025,2]
[351825388,1738804233562,-1000.0,0.00020036,2]
[351825389,1738804233572,-150.0,0.00020042,2]
[351825390,1738804233582,-1000.0,0.00020066,2]
[351825391,1738804233591,-150.0,0.00020073,2]
[351825392,1738804233601,-2000.0,0.00020073,2]
[351825393,1738804233610,-150.0,0.00020087,2]
[351825394,1738804233619,-150.0,0.0002009,2]
[351825395,1738804233629,-500.0,0.00020098,4]
[351825396,1738804233638,-500.0,0.00020098,4]
[351825397,1738804233651,-500.0,0.00020098,4]
[351825398,1738804233661,-295.1798479,0.00020098,4]
[351825399,1738804233682,-204.8201521,0.00020098,4]
[351825400,1738804233691,-50.1798479,0.00020098,4]
[351825401,1738804233703,-128.36073156,0.00020098,4]
[351825402,1738804233713,-500.0,0.00020098,4]
[351825403,1738804233723,-109.91926844,0.00020098,4]
[351825404,1738804236461,-390.08073156,0.00020098,4]
[351825405,1738804236471,-500.0,0.00020098,4]
[351825406,1738804236481,-116.07456504,0.00020098,4]
[351825407,1738804236522,-325.89852094,0.00020098,4]
[351825408,1738804236534,-58.02691402,0.00020098,4]
[351825409,1738804236543,-244.81308698,0.00020098,4]
[351825410,1738804236555,-255.18691302,0.00020098,4]
[351825411,1738804236565,-0.78868127,0.00020098,4]
[351825412,1738804236577,-499.21131873,0.00020098,4]
[351825413,1738804236588,-168.62130955,0.00020098,4]
[351825414,1738804236648,-331.37869045,0.00020098,4]
[351825415,1738804236659,-454.94,0.00020098,4]
[351825416,1738804236669,-85.21826352,0.00020098,4]
[351825417,1738804236681,-414.78173648,0.00020098,4]
[351825418,1738804236692,-500.0,0.00020098,4]
[351825419,1738804236702,-359.0,0.00020098,4]
[351825420,1738804236711,-253.66878703,0.00020098,4]
[351825425,1738804238317,-246.33121297,0.00020098,4]
[351825426,1738804238326,-500.0,0.00020098,4]
[351825427,1738804238336,-500.0,0.00020098,4]
[351825428,1738804238346,-500.0,0.00020098,4]
[351825429,1738804238356,-500.0,0.00020098,4]
[351825430,1738804238365,-500.0,0.00020098,4]
[351825431,1738804238375,-401.84,0.00020098,4]
[351825432,1738804238384,-500.0,0.00020098,4]
[351825433,1738804238393,-500.0,0.00020098,4]
[351825434,1738804238403,-500.0,0.00020098,4]
[351825435,1738804238412,-500.0,0.00020098,4]
[351825436,1738804238422,-500.0,0.00020098,4]
[351825437,1738804238433,-500.0,0.00020098,4]
[351825438,1738804238443,-500.0,0.00020098,4]
[351825439,1738804238454,-500.0,0.00020098,4]
[351825440,1738804238466,-500.0,0.00020098,2]
[351825441,1738804238475,-500.0,0.00020098,4]
[351825442,1738804238485,-500.0,0.00020098,4]
[351825443,1738804238494,-500.0,0.00020098,4]
[351825444,1738804238503,-500.0,0.00020098,4]
[351825445,1738804238513,-500.0,0.00020098,4]